bitfinex/quotes_SOLUSD_20250301
["timestamp","ask_amount","ask_price","bid_price","bid_amount"]
[1740789122137,18.67964886,147.64,147.57,12.6332]
[1740789123138,0.03,147.64,147.57,12.6332]
[1740789123349,18.9662,147.63,147.57,12.6332]
[1740789123562,5.4189,147.63,147.57,12.6332]
[1740789124859,5.4486,147.64,147.57,18.0542]
[1740789125034,5.4486,147.64,147.57,12.6332]
[1740789125235,0.03,147.64,147.57,18.0543]
[1740789125729,0.03,147.64,147.57,12.6332]
[1740789126041,0.03,147.64,147.57,6.18]
[1740789126459,20.0,147.62,147.57,6.18]
[1740789127157,20.0,147.62,147.56,6.243]
[1740789127354,18.9688,147.61,147.56,6.243]
[1740789127529,5.4196,147.61,147.56,6.243]
[1740789131138,18.9688,147.61,147.56,0.063]
[1740789131350,18.64964886,147.6,147.56,0.063]
[1740789131565,5.4204,147.59,147.56,0.063]
[1740789132238,18.64964886,147.58,147.56,0.063]
[1740789133562,5.4211,147.57,147.56,0.063]
[1740789134649,24.07074886,147.57,147.56,0.063]
[1740789135744,20.64964886,147.56,147.55,0.0001]
[1740789136961,26.07114886,147.56,147.55,0.0001]
[1740789137853,24.07114886,147.56,147.55,0.0001]
[1740789138053,5.4215,147.56,147.55,0.0001]
[1740789139173,1.6377,147.59,147.55,0.0001]
[1740789139476,5.4194,147.62,147.55,0.0001]
[1740789139778,10.55966681,147.64,147.55,0.0001]
[1740789139977,20.0,147.61,147.55,0.0001]
[1740789140154,18.64964886,147.63,147.55,0.0001]
[1740789140649,24.06864886,147.63,147.55,0.0001]
[1740789140874,24.06864886,147.63,147.55,5.4219]
[1740789141052,20.0,147.6,147.55,0.0001]
[1740789141769,18.64964886,147.59,147.55,0.0001]
[1740789142769,25.4215,147.56,147.55,0.0001]
[1740789143245,44.07114886,147.56,147.55,0.0001]
[1740789151083,25.4215,147.56,147.55,0.0001]
[1740789154985,44.07114886,147.56,147.55,0.0001]
[1740789159280,25.4215,147.56,147.55,0.0001]
[1740789159492,5.4215,147.56,147.55,0.0001]
[1740789162659,5.4211,147.57,147.55,0.0001]
[1740789165181,80.7,147.57,147.55,0.0001]
[1740789165887,18.64964886,147.56,147.55,0.0001]
[1740789166372,80.7,147.57,147.55,0.0001]
[1740789168370,21.325,147.63,147.55,0.0001]
[1740789168371,80.7,147.61,147.55,0.0001]
[1740789168570,0.03,147.57,147.55,0.0001]
[1740789170474,0.03,147.57,147.55,6.1801]
[1740789170676,0.03,147.64,147.56,7.828]
[1740789170872,0.03,147.64,147.6,5.42]
[1740789171074,0.03,147.64,147.6,11.6]
[1740789171988,0.03,147.64,147.61,7.5759]
[1740789172399,0.03,147.64,147.63,20.0]
[1740789172711,0.03,147.66,147.63,101.0]
[1740789172897,0.03,147.66,147.65,24.06784886]
[1740789173200,10.52966681,147.7,147.65,30.24784886]
[1740789173583,10.52966681,147.7,147.68,20.0]
[1740789173978,10.52966681,147.7,147.68,21.5596]
[1740789174300,0.03,147.71,147.68,21.5596]
[1740789174869,0.03,147.71,147.68,1.5596]
[1740789175475,0.03,147.71,147.7,20.0]
[1740789175676,0.03,147.71,147.7,26.0163]
[1740789177086,0.03,147.71,147.7,112.4326]
[1740789177289,0.03,147.72,147.71,2.0]
[1740789177506,0.03,147.72,147.71,223.0]
[1740789178783,0.03,147.72,147.71,81.0]
[1740789179589,0.03,147.72,147.7,6.0163]
[1740789179899,0.03,147.72,147.71,20.0]
[1740789181395,0.03,147.75,147.74,20.0]
[1740789181598,0.03,147.75,147.74,107.16]
[1740789182306,0.03,147.75,147.74,126.94014886]
[1740789183206,0.03,147.75,147.74,132.35504886]
[1740789183496,0.03,147.75,147.74,274.35504886]
[1740789183892,0.03,147.75,147.74,280.63754886]
[1740789184404,0.03,147.75,147.74,276.63754886]
[1740789184697,0.03,147.75,147.74,113.4425]
[1740789186304,0.03,147.75,147.74,142.92804311]
[1740789187505,0.03,147.75,147.74,118.8574]
[1740789188304,0.03,147.75,147.74,137.50704886]
[1740789189389,0.03,147.75,147.74,142.92785079]
[1740789190406,0.03,147.75,147.74,87.2825]
[1740789190704,0.03,147.75,147.74,87.16]
[1740789191612,0.03,147.75,147.74,111.22454886]
[1740789192110,0.03,147.75,147.74,116.645263]
[1740789193208,0.03,147.75,147.74,275.025263]
[1740789193409,0.03,147.79,147.78,42.68464886]
[1740789193709,0.03,147.87,147.83,18.64964886]
[1740789193882,0.03,147.87,147.84,6.16]
[1740789195508,0.03,147.87,147.85,28.06044886]
[1740789195684,0.03,147.87,147.85,269.09544886]
[1740789195887,0.03,147.87,147.86,22.64964886]
[1740789196085,0.03,147.9,147.89,24.0]
[1740789196310,0.03,147.9,147.89,269.22881507]
[1740789196489,0.03,147.9,147.89,267.80964886]
[1740789197426,0.03,147.9,147.89,273.21904886]
[1740789197606,0.03,147.91,147.9,23.75014886]
[1740789197791,0.03,147.96,147.95,22.64964886]
[1740789197997,0.03,147.96,147.95,249.22810992]
[1740789198200,0.03,147.96,147.95,247.80964886]
[1740789198495,0.03,147.96,147.95,254.42924886]
[1740789198701,148.5076935,148.06,147.99,22.0]
[1740789198903,148.5076935,148.06,148.0,24.80964886]
[1740789199108,153.9109935,148.06,148.0,6.16]
[1740789199914,148.5076935,148.06,148.0,30.21494886]
[1740789200117,5.4024,148.08,148.0,24.80964886]
[1740789201901,5.4024,148.08,148.03,20.0]
[1740789202102,5.4021,148.09,148.03,101.0]
[1740789202429,6.9853,148.1,148.03,101.0]
[1740789203002,6.9853,148.1,148.04,18.64964886]
[1740789203211,5.4006,148.13,148.05,6.16]
[1740789203415,5.4006,148.13,148.08,20.0]
[1740789205405,0.03,148.09,148.08,20.0]
[1740789206213,0.03,148.09,148.05,225.16]
[1740789206411,0.03,148.09,148.05,87.16]
[1740789206926,0.03,148.09,148.05,6.16]
[1740789207333,0.03,148.09,148.02,81.0]
[1740789207498,20.0,148.08,148.0,81.0]
[1740789208239,18.9099,148.07,148.0,81.0]
[1740789208616,6.3981,148.05,147.99,6.16]
[1740789209835,6.3981,148.05,147.96,81.0]
[1740789209836,18.64964886,148.04,147.96,81.0]
[1740789210143,18.915,148.03,147.95,6.16]
[1740789210538,99.34964886,148.02,147.92,87.5284]
[1740789210719,99.34964886,148.02,147.93,6.16]
[1740789210927,80.7,148.01,147.93,6.16]
[1740789211528,99.34964886,148.0,147.9,87.16]
[1740789211726,18.64964886,147.97,147.88,6.223]
[1740789211922,99.34964886,147.97,147.88,6.223]
[1740789212123,18.9239,147.96,147.88,6.223]
[1740789212443,5.4061,147.98,147.92,20.0]
[1740789212736,5.4061,147.98,147.93,6.16]
[1740789212910,5.405,148.01,147.93,87.16]
[1740789213509,18.9176,148.01,147.93,87.16]
[1740789213736,18.9176,148.01,147.93,6.16]
[1740789214716,5.405,148.01,147.93,11.5679]
[1740789214913,5.405,148.01,147.93,92.5679]
[1740789215442,18.9176,148.01,147.93,6.16]
[1740789216749,80.7,148.0,147.93,6.16]
[1740789216923,18.64964886,147.98,147.89,81.0]
[1740789217141,6.3981,147.97,147.89,87.16]
[1740789217339,80.7,147.96,147.89,87.16]
[1740789217522,6.3981,147.97,147.88,0.063]
[1740789217523,20.0,147.92,147.88,0.063]
[1740789217739,80.7,147.91,147.88,0.063]
[1740789218456,86.1089,147.91,147.88,0.063]
[1740789218750,99.6306,147.91,147.88,0.063]
[1740789219057,80.7,147.91,147.88,0.063]
[1740789219835,15.0408,147.94,147.88,0.063]
[1740789219836,6.9289,147.94,147.88,0.063]
[1740789220252,6.9289,147.94,147.88,6.223]
[1740789222857,18.64964886,147.93,147.88,6.223]
[1740789223048,18.64964886,147.93,147.88,0.063]
[1740789223548,80.7,147.92,147.88,0.063]
[1740789223747,18.64964886,147.91,147.88,0.063]
[1740789224058,5.409,147.9,147.88,0.063]
[1740789224427,99.34964886,147.89,147.88,0.0001]
[1740789224754,18.64964886,147.87,147.8,6.16]
[1740789225065,18.64964886,147.85,147.77,81.0]
[1740789225243,80.7,147.84,147.77,81.0]
[1740789225846,5.4116,147.83,147.77,81.0]
[1740789227066,18.64964886,147.82,147.74,0.063]
[1740789227266,80.7,147.81,147.74,0.063]
[1740789228059,18.64964886,147.79,147.74,0.063]
[1740789228267,80.7,147.78,147.74,0.063]
[1740789228468,99.34964886,147.77,147.74,0.063]
[1740789230039,5.4141,147.76,147.74,0.063]
[1740789230865,80.7,147.77,147.74,0.063]
[1740789232048,80.7,147.81,147.74,0.063]
[1740789232368,82.3395,147.84,147.75,6.16]
[1740789232668,82.3395,147.84,147.75,87.16]
[1740789232838,82.3395,147.84,147.78,20.0]
[1740789233038,87.7509,147.84,147.78,20.0]
[1740789233340,82.3395,147.84,147.78,25.4133]
[1740789233950,87.7508,147.84,147.76,5.4141]
[1740789234153,82.3395,147.84,147.76,5.4141]
[1740789234333,80.7,147.86,147.79,20.0]
[1740789235068,80.7,147.86,147.8,5.4127]
[1740789235239,86.1105,147.86,147.79,25.4129]
[1740789237664,18.64964886,147.85,147.76,81.0]
[1740789237841,18.64964886,147.85,147.76,87.16]
[1740789238240,80.7,147.84,147.76,6.16]
[1740789238463,80.7,147.83,147.75,12.537]
[1740789238652,80.7,147.83,147.75,6.16]
[1740789238854,99.34964886,147.82,147.75,6.16]
[1740789239056,99.34964886,147.82,147.74,0.063]
[1740789240062,18.9431,147.81,147.74,0.063]
[1740789240261,5.4123,147.81,147.74,0.063]
[1740789241544,18.9431,147.81,147.74,0.063]
[1740789241944,18.9431,147.81,147.75,0.063]
[1740789242246,18.64964886,147.8,147.75,0.063]
[1740789242571,80.7,147.79,147.75,0.063]
[1740789244252,80.7,147.84,147.76,6.16]
[1740789244573,86.1112,147.84,147.76,87.16]
[1740789245756,18.64964886,147.83,147.76,87.16]
[1740789246049,20.0,147.79,147.76,6.16]
[1740789246269,20.0,147.79,147.75,0.063]
[1740789247341,100.7,147.78,147.75,0.063]
[1740789247845,5.4138,147.77,147.75,0.063]
[1740789250371,80.7,147.76,147.75,0.063]
[1740789251474,106.40524886,147.76,147.75,0.063]
[1740789251643,25.70524886,147.76,147.74,0.063]
[1740789251843,38.64964886,147.74,147.72,0.0001]
[1740789252159,99.34964886,147.73,147.72,0.0001]
[1740789253477,20.0,147.7,147.63,93.2186]
[1740789253658,80.7,147.71,147.63,93.2186]
[1740789254477,99.34964886,147.7,147.63,12.2186]
[1740789255172,80.7,147.69,147.62,0.063]
[1740789255476,18.64964886,147.68,147.62,0.063]
[1740789255678,5.4174,147.67,147.62,0.063]
[1740789255854,80.7,147.66,147.62,0.063]
[1740789256498,20.0,147.63,147.62,0.063]
[1740789257279,80.7,147.65,147.62,0.063]
[1740789257686,86.1185,147.65,147.62,0.063]
[1740789258780,80.7,147.68,147.62,0.063]
[1740789259085,86.1165,147.7,147.62,0.063]
[1740789259257,18.64964886,147.69,147.62,0.063]
[1740789259675,20.0,147.64,147.62,0.063]
[1740789260379,119.34964886,147.63,147.62,0.063]
[1740789260583,38.64964886,147.63,147.62,0.063]
[1740789260784,44.06854886,147.63,147.62,0.063]
[1740789261491,44.06854886,147.63,147.61,0.063]
[1740789261696,18.64964886,147.62,147.6,0.063]
[1740789261994,18.64964886,147.62,147.6,0.0001]
[1740789262691,24.06924886,147.61,147.6,0.0001]
[1740789265966,21.37,147.63,147.6,0.0001]
[1740789266196,5.4193,147.62,147.6,0.0001]
[1740789266372,99.34964886,147.61,147.6,0.0001]
[1740789266990,80.7,147.61,147.6,0.0001]
[1740789267179,86.1196,147.61,147.6,0.0001]
[1740789267376,80.7,147.64,147.6,0.0001]
[1740789267577,86.1187,147.64,147.6,0.0001]
[1740789267888,80.7,147.64,147.6,0.0001]
[1740789268475,5.4174,147.67,147.6,0.0001]
[1740789268679,86.1172,147.68,147.6,6.2001]
[1740789268878,20.0,147.65,147.6,0.0001]
[1740789269281,5.4185,147.64,147.6,0.0001]
[1740789270600,20.0,147.65,147.6,0.0001]
[1740789270773,80.7,147.67,147.6,0.0001]
[1740789270973,80.7,147.67,147.61,6.2]
[1740789271180,15.0895,147.71,147.61,6.2]
[1740789271181,5.4172,147.68,147.61,87.2]
[1740789271474,86.1164,147.7,147.61,87.2]
[1740789272475,18.64964886,147.73,147.62,20.64964886]
[1740789272476,5.4156,147.72,147.62,20.64964886]
[1740789272775,5.4156,147.72,147.65,20.0]
[1740789272976,5.4156,147.72,147.66,6.2]
[1740789273786,86.1153,147.73,147.66,11.6176]
[1740789274502,18.64964886,147.72,147.66,6.2]
[1740789274698,18.64964886,147.72,147.62,87.2]
[1740789274699,80.7,147.71,147.62,87.2]
[1740789274905,20.0,147.68,147.62,6.2]
[1740789275397,99.34964886,147.67,147.6,6.2201]
[1740789275912,86.1178,147.66,147.6,6.2201]
[1740789276797,80.7,147.65,147.6,6.2201]
[1740789277003,80.7,147.64,147.6,6.2201]
[1740789277190,80.7,147.64,147.6,0.0001]
[1740789277388,80.7,147.63,147.6,0.0001]
[1740789277704,5.4196,147.61,147.6,0.0001]
[1740789277904,86.1196,147.61,147.6,0.0001]
[1740789279298,104.76924886,147.61,147.6,0.0001]
[1740789279605,24.06924886,147.61,147.6,0.0001]
[1740789281308,20.0,147.61,147.6,0.0001]
[1740789282881,25.4196,147.61,147.6,0.0001]
[1740789283083,44.06924886,147.61,147.6,0.0001]
[1740789289487,46.06924886,147.61,147.6,0.0001]
[1740789289689,52.66734886,147.61,147.6,0.0001]
[1740789291208,50.66734886,147.61,147.6,0.0001]
[1740789291416,52.66734886,147.61,147.6,0.0001]
[1740789291924,54.66734886,147.61,147.6,0.0001]
[1740789293223,52.66734886,147.61,147.6,0.0001]
[1740789293523,54.66734886,147.61,147.6,0.0001]
[1740789295119,52.66734886,147.61,147.6,0.0001]
[1740789295316,54.66734886,147.61,147.6,0.0001]
[1740789295509,52.66734886,147.61,147.6,0.0001]
[1740789295822,54.66734886,147.61,147.6,0.0001]
[1740789296419,52.66734886,147.61,147.6,0.0001]
[1740789296721,54.66734886,147.61,147.6,0.0001]
[1740789297328,52.66734886,147.61,147.6,0.0001]
[1740789297513,24.06924886,147.61,147.6,0.0001]
[1740789297820,6.16,147.64,147.6,0.0001]
[1740789298324,18.64964886,147.63,147.6,0.0001]
[1740789298501,21.2632,147.67,147.6,0.0001]
[1740789298703,20.0,147.63,147.6,0.0001]
[1740789299619,20.0,147.62,147.6,0.0001]
[1740789300024,21.2632,147.67,147.6,0.0001]
[1740789300025,119.5772,147.68,147.6,0.0001]
[1740789300416,20.0,147.65,147.6,0.0001]
[1740789300615,0.03,147.7,147.6,81.0001]
[1740789300821,0.03,147.63,147.61,6.6164]
[1740789301030,0.03,147.7,147.62,1.1004]
[1740789301429,0.03,147.7,147.63,18.64964886]
[1740789301630,0.03,147.7,147.64,11.5785]
[1740789301931,0.03,147.7,147.64,106.1249]
[1740789302128,0.03,147.7,147.64,246.1249]
[1740789302326,0.03,147.7,147.65,6.487]
[1740789302530,0.03,147.7,147.65,87.487]
[1740789303734,0.03,147.7,147.66,5.4178]
[1740789304536,0.03,147.7,147.66,86.4178]
[1740789312221,0.03,147.7,147.66,88.4178]
[1740789312422,0.03,147.7,147.66,101.9624]
[1740789312746,0.03,147.7,147.69,44.22844886]
[1740789313047,80.7,147.8,147.71,2.0]
[1740789313248,0.03,147.85,147.76,6.1651]
[1740789313452,0.03,147.85,147.77,6.16]
[1740789313955,0.03,147.85,147.77,9.54878112]
[1740789314141,5.441,147.85,147.77,6.16]
[1740789314341,5.441,147.85,147.77,11.5737]
[1740789314650,80.7,147.84,147.77,6.16]
[1740789315851,86.1116,147.84,147.77,6.16]
[1740789316157,99.34964886,147.83,147.76,6.1651]
[1740789317855,5.4119,147.82,147.76,6.1651]
[1740789318028,86.1119,147.82,147.76,6.1651]
[1740789318950,80.7,147.82,147.76,11.5792]
[1740789319154,0.03,147.85,147.76,230.5792]
[1740789319458,0.03,147.85,147.79,18.64964886]
[1740789319761,0.03,147.85,147.82,5.4119]
[1740789319939,0.03,147.85,147.82,81.0]
[1740789320642,0.03,147.85,147.8,87.2]
[1740789320841,0.03,147.85,147.8,6.2]
[1740789321456,80.7,147.84,147.8,6.2]
[1740789321665,20.0,147.81,147.76,87.1651]
[1740789321834,25.4124,147.81,147.76,6.1651]
[1740789322152,5.4122,147.82,147.76,6.1651]
[1740789322360,80.7,147.83,147.76,11.5791]
[1740789323369,86.1116,147.83,147.76,6.1651]
[1740789324245,99.6406,147.83,147.76,6.1651]
[1740789324538,20.0,147.79,147.73,81.0]
[1740789325258,18.9406,147.83,147.73,86.4152]
[1740789325467,18.9406,147.83,147.73,224.4152]
[1740789325969,5.4116,147.83,147.73,226.4152]
[1740789326134,5.4116,147.83,147.73,219.0]
[1740789326332,18.9406,147.83,147.73,219.0]
[1740789326638,20.0,147.8,147.73,219.0]
[1740789326847,20.0,147.8,147.73,81.0]
[1740789327048,20.0,147.79,147.73,81.0]
[1740789327449,20.0,147.78,147.73,81.0]
[1740789328066,20.0,147.78,147.73,86.4152]
[1740789328248,80.7,147.81,147.73,86.4152]
[1740789329644,13.5296,147.83,147.73,86.4152]
[1740789329970,5.4116,147.83,147.74,20.64964886]
[1740789330132,5.4116,147.83,147.74,18.64964886]
[1740789330338,5.4116,147.83,147.73,224.4152]
[1740789330945,5.4116,147.83,147.73,226.4152]
[1740789331565,5.4116,147.83,147.75,5.4145]
[1740789331867,0.03,147.85,147.78,6.0079]
[1740789332042,0.03,147.85,147.79,6.2]
[1740789332364,0.03,147.85,147.79,225.2]
[1740789332940,0.03,147.85,147.84,28.0079]
[1740789333150,0.03,147.87,147.86,38.64964886]
[1740789333362,0.03,147.88,147.87,18.64964886]
[1740789333547,0.03,147.88,147.87,237.64964886]
[1740789334047,0.03,147.88,147.87,243.05974886]
[1740789334243,80.73,148.01,147.88,2.0]
[1740789334586,5.4054,148.0,147.89,24.88964886]
[1740789334747,5.4054,148.0,147.89,26.88964886]
[1740789335072,5.4054,148.0,147.89,30.19594644]
[1740789335248,5.4054,148.0,147.89,32.19594644]
[1740789335570,5.4054,148.0,147.89,6.24]
[1740789335774,20.0,147.96,147.89,6.24]
[1740789335990,80.7,147.98,147.89,87.24]
[1740789337786,5.4065,147.97,147.89,87.24]
[1740789338599,20.0,147.94,147.89,87.24]
[1740789338885,20.0,147.93,147.87,81.0]
[1740789339668,5.4083,147.92,147.87,81.0]
[1740789339889,99.6291,147.92,147.84,6.0079]
[1740789340100,80.7,147.91,147.84,6.0079]
[1740789340776,80.7,147.91,147.83,87.24]
[1740789341691,5.409,147.9,147.83,87.24]
[1740789342098,5.409,147.9,147.83,92.6515]
[1740789342389,94.2188,147.95,147.84,18.64964886]
[1740789342594,94.2188,147.95,147.84,237.64964886]
[1740789343102,5.4054,148.0,147.9,18.64964886]
[1740789343300,5.4054,148.0,147.91,6.22]
[1740789343482,20.0,147.97,147.91,6.22]
[1740789343683,5.4068,147.96,147.91,6.22]
[1740789344001,86.1068,147.96,147.91,6.22]
[1740789344200,86.1068,147.96,147.89,6.1005]
[1740789346287,86.1068,147.96,147.89,11.5099]
[1740789346497,80.7,147.96,147.89,11.5099]
[1740789348085,86.1068,147.96,147.89,11.5099]
[1740789349483,80.7,147.98,147.89,92.5099]
[1740789349687,5.4065,147.97,147.89,92.5099]
[1740789349886,20.0,147.94,147.89,87.1005]
[1740789350389,80.7,147.96,147.89,92.5097]
[1740789350586,80.7,147.96,147.89,87.1005]
[1740789351416,80.7,147.96,147.89,6.1005]
[1740789351713,20.0,147.92,147.87,81.0]
[1740789353721,5.4086,147.91,147.87,81.0]
[1740789354220,5.4079,147.93,147.87,86.4101]
[1740789354799,5.4079,147.93,147.87,81.0]
[1740789355320,5.4079,147.93,147.85,6.3435]
[1740789355321,20.0,147.9,147.85,6.3435]
[1740789355496,20.0,147.9,147.81,6.3435]
[1740789355497,18.64964886,147.89,147.81,6.3435]
[1740789355692,5.4097,147.88,147.81,6.3435]
[1740789356408,5.4097,147.88,147.81,11.7557]
[1740789356715,5.4086,147.91,147.81,92.7557]
[1740789357094,5.4086,147.91,147.81,94.7557]
[1740789357302,5.4086,147.91,147.82,5.41991986]
[1740789357510,5.4086,147.91,147.81,230.7557]
[1740789357719,5.4101,147.87,147.81,87.3435]
[1740789358109,18.9354,147.87,147.81,87.3435]
[1740789358314,20.0,147.83,147.78,0.063]
[1740789358515,20.0,147.79,147.78,0.063]
[1740789359717,44.06264886,147.79,147.78,0.063]
[1740789365933,18.64964886,147.78,147.69,0.063]
[1740789366141,20.0,147.75,147.69,0.063]
[1740789366521,18.64964886,147.74,147.69,0.063]
[1740789367122,20.0,147.71,147.69,0.063]
[1740789367439,20.0,147.7,147.69,0.063]
[1740789367743,38.64964886,147.7,147.69,0.063]
[1740789368041,44.06594886,147.7,147.69,0.063]
[1740789369846,46.06594886,147.7,147.69,0.063]
[1740789370042,44.06594886,147.7,147.69,0.063]
[1740789371041,25.4149,147.74,147.69,0.063]
[1740789371351,20.0,147.7,147.69,0.063]
[1740789371841,38.64964886,147.7,147.69,0.063]
[1740789372047,44.06594886,147.7,147.69,0.063]
[1740789372720,50.34594886,147.7,147.69,0.063]
[1740789373321,52.34594886,147.7,147.69,0.0001]
[1740789378346,50.34594886,147.7,147.69,0.0001]
[1740789381852,52.34594886,147.7,147.69,0.0001]
[1740789386236,54.34594886,147.7,147.69,0.0001]
[1740789387961,55.19049675,147.7,147.69,0.0001]
[1740789388174,56.72299675,147.7,147.69,0.0001]
[1740789389559,63.25379675,147.7,147.69,0.0001]
[1740789389766,63.25379675,147.7,147.6,0.0001]
[1740789389767,20.0,147.62,147.6,0.0001]
[1740789389954,18.64964886,147.61,147.6,0.0001]
[1740789390463,20.0,147.61,147.6,0.0001]
[1740789391473,38.64964886,147.61,147.6,0.0001]
[1740789391762,44.06924886,147.61,147.6,0.0001]
[1740789393777,86.1194,147.62,147.6,0.0001]
[1740789396675,18.64964886,147.61,147.6,0.0001]
[1740789397269,38.64964886,147.61,147.6,0.0001]
[1740789398676,44.06924886,147.61,147.6,0.0001]
[1740789398969,26.06924886,147.61,147.6,0.0001]
[1740789399173,44.06924886,147.61,147.6,0.0001]
[1740789399342,24.06924886,147.61,147.6,0.0001]
[1740789401074,44.06924886,147.61,147.6,0.0001]
[1740789401255,24.06924886,147.61,147.6,0.0001]
[1740789401457,44.06924886,147.61,147.6,0.0001]
[1740789401661,24.06924886,147.61,147.6,0.0001]
[1740789402263,44.06924886,147.61,147.6,0.0001]
[1740789402457,24.06924886,147.61,147.6,0.0001]
[1740789402977,114.2,147.63,147.6,0.0001]
[1740789403177,119.619,147.63,147.6,0.0001]
[1740789403367,5.419,147.63,147.6,0.0001]
[1740789405148,20.0,147.62,147.6,0.0001]
[1740789405354,38.64964886,147.61,147.6,0.0001]
[1740789405554,20.0,147.61,147.6,0.0001]
[1740789405768,5.4185,147.64,147.6,0.0001]
[1740789406455,0.063,147.63,147.6,0.0001]
[1740789406668,18.71264886,147.63,147.6,0.0001]
[1740789406860,20.0,147.61,147.6,0.0001]
[1740789407274,25.4196,147.61,147.6,0.0001]
[1740789408291,20.0,147.61,147.6,0.0001]
[1740789409286,25.4196,147.61,147.6,0.0001]
[1740789409573,44.06924886,147.61,147.6,0.0001]
[1740789412379,80.7,147.62,147.6,0.0001]
[1740789412559,86.1193,147.62,147.6,0.0001]
[1740789414281,5.4193,147.62,147.6,0.0001]
[1740789415070,20.0,147.62,147.6,0.0001]
[1740789416788,5.4196,147.61,147.6,0.0001]
[1740789417985,86.1196,147.61,147.6,0.0001]
[1740789418189,2.0,147.6,147.55,0.0001]
[1740789418387,18.64964886,147.58,147.52,0.063]
[1740789418581,20.0,147.54,147.52,0.063]
[1740789418894,25.4226,147.53,147.52,0.063]
[1740789420290,80.7,147.56,147.52,0.063]
[1740789420498,20.0,147.53,147.52,0.063]
[1740789421784,18.64964886,147.53,147.52,0.063]
[1740789421988,20.0,147.51,147.5,0.063]
[1740789422582,25.4233,147.51,147.5,0.063]
[1740789423293,124.77294886,147.51,147.5,0.0001]
[1740789423686,18.64964886,147.5,147.48,0.063]
[1740789423975,80.7,147.49,147.45,0.063]
[1740789424174,80.7,147.49,147.47,0.0001]
[1740789424594,5.4244,147.48,147.47,0.0001]
[1740789424988,5.4244,147.48,147.41,0.063]
[1740789424989,20.0,147.45,147.41,0.063]
[1740789425179,20.0,147.45,147.38,0.063]
[1740789425180,20.0,147.4,147.38,0.063]
[1740789425378,100.7,147.4,147.38,0.063]
[1740789426477,24.07734886,147.39,147.38,0.063]
[1740789427601,24.92189675,147.39,147.38,0.063]
[1740789427800,20.0,147.36,147.31,6.3725]
[1740789428170,20.0,147.35,147.31,6.3725]
[1740789428673,86.1282,147.38,147.31,6.3725]
[1740789429412,80.7,147.38,147.31,6.3725]
[1740789429596,86.1282,147.38,147.31,6.3725]
[1740789429902,99.34964886,147.37,147.31,6.3725]
[1740789430199,80.7,147.36,147.31,6.3725]
[1740789430703,5.4292,147.35,147.31,6.3725]
[1740789431274,5.4292,147.35,147.26,8.0185]
[1740789431275,99.34964886,147.34,147.26,8.0185]
[1740789431482,80.7,147.33,147.26,8.0185]
[1740789432903,80.7,147.36,147.27,6.24]
[1740789433900,80.7,147.39,147.29,2.0]
[1740789434109,80.7,147.39,147.3,6.3725]
[1740789435288,18.64964886,147.38,147.3,11.8035]
[1740789435500,99.34964886,147.38,147.3,6.3725]